fUSD/lending_fUSD_20250417
["ID","MTS","AMOUNT","RATE_DAILY","PERIOD"]
[358216446,1744852232478,-1536.0,0.00051741,10]
[358216447,1744852232488,-1290.81,0.00051824,2]
[358216448,1744852232497,-188.17,0.00051859,120]
[358216449,1744852232507,-770.08716838,0.00052,30]
[358216450,1744852232516,-188.0,0.00052,120]
[358216451,1744852232525,-189.0,0.00052,31]
[358216452,1744852232533,-728.0,0.00052,120]
[358216453,1744852232542,-500.0,0.00052,120]
[358216454,1744852232551,-150.0,0.00052001,120]
[358216455,1744852232560,-802.66389022,0.00052055,120]
[358216456,1744852232569,-846.45,0.00052194,2]
[358216457,1744852232578,-11706.68071218,0.00052349,2]
[358216458,1744852232589,-1569.56510515,0.00052349,2]
[358216459,1744852232600,-412.40818989,0.00052349,2]
[358216460,1744852232611,-1435.01061978,0.00052349,2]
[358216461,1744852232622,-313.92303194,0.00052349,2]
[358216462,1744852232638,-3739.01077796,0.00052349,2]
[358216463,1744852232649,-872.98459677,0.00052349,2]
[358216464,1744852232665,-422.3963079,0.00052349,2]
[358216465,1744852232676,-478.31588386,0.00052349,2]
[358216466,1744852232687,-2949.70477457,0.00052349,2]
[358216467,1744852232697,-132.2850888,0.00052349,2]
[358216468,1744852232709,-455.85,0.00052349,2]
[358216469,1744852232725,-2139.6649112,0.00052349,2]
[358216470,1744852232734,-208.6649908,0.00052349,2]
[358216471,1744852232745,-322.7550092,0.00052349,2]
[358216472,1744852232755,-200.0,0.00052369,30]
[358216473,1744852232764,-70.58098225,0.00052373,10]
[358216474,1744852232776,-82.46075854,0.00052373,10]
[358216475,1744852232785,-259.79527337,0.00052373,10]
[358216476,1744852232794,-59.49422429,0.00052373,10]
[358216477,1744852232810,-142.51554662,0.00052373,10]
[358216478,1744852232821,-500.0,0.00052373,10]
[358216479,1744852232830,-1000.0,0.000526,2]
[358216480,1744852232839,-1247.4961,0.00052604,2]
[358216481,1744852232848,-835.25,0.00052613,2]
[358216482,1744852232859,-156.96,0.00052641,120]
[358216483,1744852232868,-7267.37,0.00052704,2]
[358216484,1744852232877,-3539.89,0.00052756,2]
[358216485,1744852232887,-169.54,0.00052963,2]
[358216486,1744852232896,-189.0,0.00053,90]
[358216487,1744852232906,-189.0,0.00053,60]
[358216488,1744852232915,-189.4,0.00053,120]
[358216489,1744852232924,-188.0,0.00053,45]
[358216490,1744852232933,-200.0,0.00053,10]
[358216491,1744852232943,-850.0,0.00053,2]
[358216492,1744852232952,-1309.284,0.00053,98]
[358216493,1744852232962,-219.56,0.00053183,2]
[358216494,1744852232971,-2026.54,0.00053183,2]
[358216495,1744852232980,-2000.0,0.00053323,120]
[358216496,1744852232990,-2000.0,0.000534,2]
[358216497,1744852233001,-1476.0,0.000534,7]
[358216498,1744852233011,-269.1633,0.00053735,2]
[358216499,1744852233020,-3512.5874,0.00053735,2]
[358216500,1744852233030,-150.0,0.0005382,120]
[358216501,1744852233039,-880.0,0.00053835,30]
[358216502,1744852233048,-500.0,0.00054,120]
[358216503,1744852233058,-728.0,0.00054,120]
[358216504,1744852233068,-1290.81,0.00054087,2]
[358216505,1744852233077,-1000.0,0.000541,7]
[358216506,1744852233087,-1914.5821323,0.00054246,4]
[358216507,1744852233096,-947.66027511,0.00054319,9]
[358216508,1744852233106,-880.0,0.0005439,30]
[358216509,1744852233115,-2151.0,0.00054419,15]
[358216510,1744852233124,-741.73,0.0005442,120]
[358216511,1744852233134,-1000.0,0.00054494,2]
[358216512,1744852233143,-12405.625,0.00054494,2]
[358216513,1744852233152,-500.00008948,0.000545,120]
[358216514,1744852233162,-2000.0,0.000545,120]
[358216515,1744852233171,-152.0,0.00054518,3]
[358216516,1744852233180,-194.9977,0.00054594,2]
[358216517,1744852233189,-1101.6032,0.00054594,2]
[358216518,1744852233199,-500.0,0.000546,2]
[358216519,1744852233208,-1400.0,0.000546,19]
[358216520,1744852233217,-1000.0,0.00054673,2]
[358216521,1744852233227,-535.1883,0.00054684,2]
[358216522,1744852233237,-1256.0216,0.00054684,2]
[358216523,1744852233249,-6053.3387,0.00054684,2]
[358216524,1744852233259,-2385.83428342,0.00054684,26]
[358216525,1744852233269,-5351.77962644,0.00054684,15]
[358216526,1744852233278,-178.69131132,0.00054684,57]
[358216527,1744852233286,-17354.4948,0.00054694,2]
[358216528,1744852233295,-567.9783,0.00054694,2]
[358216529,1744852233303,-150.0,0.00054698,120]
[358216530,1744852233311,-384.0,0.000547,3]
[358216531,1744852233321,-2900.0,0.000547,19]
[358216532,1744852233330,-483.04163479,0.000547,120]
[358216533,1744852233340,-500.0,0.00054753,120]
[358216534,1744852233349,-4611.17893133,0.00054764,4]
[358216535,1744852233359,-500.0,0.00054773,10]
[358216536,1744852233368,-500.0,0.00054773,10]
[358216537,1744852233377,-154.69289428,0.00054773,10]
[358216538,1744852233387,-500.0,0.00054773,10]
[358216539,1744852233396,-500.0,0.00054773,10]
[358216540,1744852233405,-346.25865082,0.00054773,10]
[358216541,1744852233415,-160.07077911,0.00054773,2]
[358216542,1744852233424,-607.18471712,0.00054773,10]
[358216543,1744852233433,-500.0,0.00054773,10]
[358216544,1744852233443,-500.0,0.00054773,5]
[358216545,1744852233452,-159.95065559,0.00054773,10]
[358216546,1744852233461,-500.0,0.00054773,7]
[358216547,1744852233471,-160.04105987,0.00054773,10]
[358216548,1744852233481,-500.0,0.00054773,10]
[358216549,1744852233491,-500.0,0.00054773,10]
[358216550,1744852233500,-500.0,0.00054773,10]
[358216551,1744852233509,-500.0,0.00054773,10]
[358216552,1744852233519,-329.09363466,0.00054773,10]
[358216553,1744852233529,-500.0,0.00054773,10]
[358216554,1744852233539,-500.0,0.00054773,10]
[358216555,1744852233548,-504.72200144,0.00054773,10]
[358216556,1744852233558,-313.08390131,0.00054773,10]
[358216557,1744852233567,-500.46037619,0.00054773,10]
[358216558,1744852233577,-504.03721051,0.00054773,10]
[358216559,1744852233586,-472.29649838,0.00054773,10]
[358216560,1744852233595,-210.0677846,0.00054773,10]
[358216561,1744852233604,-500.0,0.00054773,10]
[358216562,1744852233613,-47067.28351062,0.00054773,64]
[358216571,1744852237631,-2058.41,0.00052249,2]
[358216572,1744852237641,-1034.4197,0.00054673,2]
[358216573,1744852237651,-213.0,0.00054773,2]
[358216574,1744852237661,-640.67029993,0.00054773,64]
[358216575,1744852237673,-1106.04237799,0.00054773,64]
[358216576,1744852237689,-4244.6161988,0.00054773,64]
[358216577,1744852237901,-257692.42083881,0.00054773,64]
[358216578,1744852237911,-1109.57455468,0.00054773,4]
[358216579,1744852237923,-298.0,0.00054773,4]
[358216580,1744852237946,-332.19999999,0.00054773,4]
[358216581,1744852237958,-16022.92826305,0.00054773,4]
[358216629,1744852239705,-2147.17309201,0.00054773,4]
[358216630,1744852239880,-761.32697698,0.00054773,4]
[358216631,1744852239940,-2000.0,0.00054773,4]
[358216632,1744852240010,-151.0,0.00054022,30]
[358216633,1744852240020,-101.51066702,0.00054773,4]
[358216634,1744852240033,-294.9734369,0.00054773,4]
[358216635,1744852240046,-3205.42490091,0.00054773,4]
[358216636,1744852240057,-7761.93562539,0.00054773,4]
[358216637,1744852240132,-9096.64373114,0.00054773,4]
[358216638,1744852240146,-8947.21879473,0.00054773,4]
[358216639,1744852240159,-8943.78386462,0.00054773,4]
[358216640,1744852240171,-9077.54866152,0.00054773,4]
[358216641,1744852240182,-8943.84023489,0.00054773,4]
[358216642,1744852240193,-426.05,0.00054773,4]
[358216643,1744852240204,-1091.87365768,0.00054773,4]
[358216644,1744852240215,-4179.10706997,0.00054773,4]
[358216665,1744852242628,-287.775979,0.00051987,5]
[358216667,1744852242637,-151.0,0.0005403,30]
[358216669,1744852242646,-0.43409854,0.00054773,4]
[358216670,1744852242657,-690.50000005,0.00054773,4]
[358216671,1744852242691,-38369.36799399,0.00054773,4]
[358216672,1744852242702,-2346.37994327,0.00054773,4]
[358216676,1744852243773,-1627.05487211,0.00054773,4]
[358216677,1744852243796,-522.5,0.00054773,4]
[358216682,1744852245652,-289.37,0.0005,120]
[358216683,1744852245661,-1040.8123,0.00054584,2]
[358216684,1744852245671,-23871.55429456,0.00054773,4]
[358216685,1744852245681,-10567.2011886,0.00054773,4]
[358216686,1744852245691,-13833.536794,0.00054774,4]
[358216687,1744852245701,-7044.80079242,0.00054774,4]
[358216688,1744852245712,-11881.67402548,0.00054774,4]
[358216689,1744852245727,-280.45,0.00054774,4]
[358216690,1744852245739,-1000.0,0.00054774,4]
[358216691,1744852245751,-3983.62965,0.00054774,4]
[358216692,1744852245762,-645.75968916,0.00054774,4]
[358216693,1744852245773,-2321.77278556,0.00054774,4]
[358216694,1744852245792,-400.0,0.00054774,4]
[358216695,1744852245804,-282.78234949,0.00054774,4]
[358216696,1744852245824,-2082.9365688,0.00054774,4]
[358216697,1744852245836,-409.14193754,0.00054774,4]
[358216698,1744852245848,-14971.07373949,0.00054774,4]
[358216699,1744852245890,-18614.19278054,0.00054774,4]
[358216700,1744852245902,-16632.72257564,0.00054774,4]
[358216701,1744852245974,-16758.6164856,0.00054774,4]
[358216702,1744852245986,-1958.8260393,0.00054774,4]
[358216703,1744852245996,-2467.84217956,0.00054774,4]
[358216704,1744852246009,-4069.24011853,0.00054774,4]
[358217107,1744852826766,250.0,0.00017,2]
[358217109,1744852828479,-242.01,0.00019,2]
[358217110,1744852893907,-57.99,0.00019,2]
[358217111,1744852893929,-246.872,0.00021,2]
[358217112,1744852978118,160.62038865,0.000265,120]
[358217113,1744853110490,9916.16664176,0.000154,2]
[358217114,1744853114305,-103.128,0.00021,2]
[358217115,1744853156983,-193.83217837,0.00017856,2]
[358217116,1744853217124,-227.16486466,0.00017856,2]
[358217117,1744853217146,-185.44602676,0.00023,2]
[358217118,1744853235091,-214.55397324,0.00023,2]
[358217119,1744853235113,-168.7,0.00024932,2]
[358217120,1744853235135,-4.48959127,0.00025,2]
[358217122,1744853315867,1401.08175529,0.000149,2]
[358217123,1744853321380,338.36878224,0.000154,2]
[358217124,1744853322067,218.04887665,0.0002,2]
[358217125,1744853322092,762.50977943,0.0002,2]
[358217136,1744853440214,-430.514016,0.00025,2]
[358217137,1744853440303,-14.99639273,0.00025,2]
[358217138,1744853440313,-131.84862528,0.00027,2]
[358217141,1744853442989,-226.40581537,0.00027,2]
[358217142,1744853443000,-141.74555935,0.00027,2]
[358217143,1744853443010,-550.0,0.00029,2]
[358217144,1744853443021,-168.7,0.00030829,2]
[358217145,1744853443030,-600.0,0.00031,2]
[358217146,1744853443043,-650.0,0.00033,2]
[358217147,1744853443052,-400.0,0.00033499,2]
[358217148,1744853443061,-614.95444065,0.000335,2]
[358217149,1744853445920,-163.90605926,0.000335,2]
[358217150,1744853445931,-153.51,0.000335,31]
[358217151,1744853445941,-153.51,0.000335,31]
[358217152,1744853445951,-50.84892824,0.000335,31]
[358217153,1744853446176,-102.66107176,0.000335,31]
[358217154,1744853446186,-153.51,0.000335,31]
[358217155,1744853446196,-140.32812824,0.000335,31]
[358217159,1744854125455,150.0,0.00022169,30]
[358217160,1744854136090,284.29090904,0.00022169,30]
[358217161,1744854359550,398.24854403,0.0002,2]
[358217162,1744854426247,-153.28,0.00024932,2]
[358217163,1744854426269,-395.85458551,0.00026489,2]
[358217164,1744854546076,-104.14541449,0.00026489,2]
[358217165,1744854546096,-378.87231724,0.00026489,2]
[358217166,1744854565136,-596.74734285,0.0003,2]
[358217173,1744854603270,54.21345202,0.00026,4]
[358217181,1744854637922,-658.78654798,0.00026,4]
[358217182,1744854637932,-350734.72394753,0.0003,2]
[358217183,1744854637942,-472.891202,0.0003,2]
[358217184,1744854637953,-6719.93944465,0.0003,2]
[358217185,1744854637962,-269.838685,0.00031489,2]
[358217186,1744854637971,-400.0,0.00031547,2]
[358217187,1744854637981,-4870.75239885,0.00031548,2]
[358217188,1744854637991,-400.0,0.00031647,3]
[358217189,1744854638000,-283.73,0.00031648,2]
[358217190,1744854638010,-2241.81,0.00031648,2]
[358217191,1744854638023,-4851.08363493,0.00031648,2]
[358217192,1744854638032,-9183.44,0.00031648,2]
[358217193,1744854638042,-652.44,0.00031648,2]
[358217194,1744854638051,-15635.58,0.00031648,10]
[358217195,1744854638061,-580.35169404,0.00031673,5]
[358217196,1744854638072,-280.17335578,0.00031673,5]
[358217197,1744854638083,-21017.33,0.00031673,2]
[358217198,1744854638092,-12785.08,0.00031673,2]
[358217199,1744854638102,-9999.99,0.00031673,2]
[358217200,1744854638112,-500.0,0.00031673,2]
[358217201,1744854638123,-162.36483299,0.00031673,5]
[358217202,1744854638132,-263.65830367,0.00031673,5]
[358217203,1744854638143,-153.25164585,0.00031673,5]
[358217204,1744854638153,-502.18783502,0.00031673,2]
[358217205,1744854638163,-637.68199318,0.00031673,5]
[358217206,1744854638173,-459.0,0.00031746,2]
[358217207,1744854638183,-10466.24509912,0.00031747,2]
[358217208,1744854638193,-250.0,0.0003175,2]
[358217209,1744854638203,-151.39,0.00032877,30]
[358217210,1744854638212,-477.0,0.000329,2]
[358217211,1744854638222,-250.0,0.00033,2]
[358217212,1744854638232,-250.0,0.00033,2]
[358217213,1744854638242,-1919.22273407,0.0003333,120]
[358217214,1744854638252,-500.0,0.00033473,5]
[358217215,1744854638262,-153.7,0.000335,31]
[358217216,1744854638272,-153.7,0.000335,31]
[358217217,1744854638282,-153.7,0.000335,31]
[358217218,1744854638291,-153.7,0.000335,31]
[358217219,1744854638301,-153.7,0.000335,31]
[358217220,1744854638311,-153.7,0.000335,31]
[358217221,1744854638321,-153.7,0.000335,31]
[358217222,1744854638331,-153.7,0.000335,31]
[358217223,1744854638341,-200.0,0.000335,2]
[358217224,1744854638351,-169.0,0.000335,7]
[358217225,1744854638360,-158.0,0.000335,7]
[358217226,1744854638372,-166.41152776,0.000335,7]
[358217227,1744854638382,-158.0,0.000335,7]
[358217228,1744854638391,-158.0,0.000335,7]
[358217229,1744854638401,-158.68288562,0.000335,7]
[358217230,1744854638410,-151.93558661,0.00033588,20]
[358217231,1744854638420,-560.0,0.00033946,2]
[358217232,1744854638430,-424.05500569,0.00034168,7]
[358217233,1744854638439,-500.0,0.00034168,7]
[358217234,1744854638448,-500.0,0.00034168,7]
[358217235,1744854638458,-500.0,0.00034168,7]
[358217236,1744854638467,-421.7580822,0.00034168,7]
[358217237,1744854638477,-500.0,0.00034168,7]
[358217238,1744854638486,-500.0,0.00034168,7]
[358217239,1744854638496,-500.0,0.00034168,7]
[358217240,1744854638506,-500.0,0.00034168,7]
[358217241,1744854638515,-500.0,0.00034168,7]
[358217242,1744854638526,-500.0,0.00034168,7]
[358217243,1744854638535,-500.0,0.00034168,7]
[358217244,1744854638544,-500.0,0.00034168,7]
[358217245,1744854638553,-478.98594597,0.00034168,7]
[358217246,1744854638563,-500.0,0.00034168,7]
[358217247,1744854638573,-213.0,0.00034169,2]
[358217248,1744854638583,-156162.8715,0.00034169,2]
[358217249,1744854638705,-560.0,0.00034192,3]
[358217250,1744854638715,-4870.75239885,0.00034422,2]
[358217251,1744854638725,-4851.08363484,0.00034509,2]
[358217252,1744854638734,-150.0,0.00034548,10]
[358217253,1744854638746,-700.0,0.00035,2]
[358217254,1744854638755,-150.32,0.00035244,2]
[358217255,1744854638765,-397.80101665,0.000356,7]
[358217256,1744854638775,-153.28,0.00036137,2]
[358217257,1744854638785,-463.31949792,0.00036237,2]
[358217258,1744854638795,-783.0,0.00036528,2]
[358217259,1744854638804,-150.32,0.0003662,2]
[358217260,1744854638814,-168.7,0.00036727,2]
[358217261,1744854638824,-500.0,0.00036932,2]
[358217262,1744854638833,-783.0,0.00036941,3]
[358217263,1744854638846,-750.0,0.00037,2]
[358217264,1744854638856,-331.01334453,0.00037152,2]
[358217265,1744854638866,-213.0,0.00037169,2]
[358217266,1744854638877,-4870.75239885,0.00037296,2]
[358217267,1744854638887,-4851.08363484,0.00037371,2]
[358217268,1744854638897,-1056.47,0.00037888,2]
[358217269,1744854638906,-150.32,0.00037996,2]
[358217270,1744854638915,-477.18194399,0.000384,2]
[358217271,1744854638925,-200.0,0.00038425,7]
[358217272,1744854638934,-1161.73,0.00038462,2]
[358217273,1744854638944,-1000.0,0.00038696,2]
[358217274,1744854638953,-6177.27,0.00038765,2]
[358217275,1744854638965,-501.98177829,0.00038952,5]
[358217276,1744854638975,-190.467,0.00038958,2]
[358217277,1744854638984,-800.0,0.00039,2]
[358217278,1744854638994,-1059.073,0.00039,53]
[358217279,1744854639003,-317.81085808,0.00039,120]
[358217280,1744854639012,-152.4255,0.0003926,2]
[358217281,1744854639022,-1097.0,0.00039307,5]
[358217282,1744854639031,-150.0,0.00039357,2]
[358217283,1744854639041,-150.32,0.00039372,2]
[358217284,1744854639050,-1042.586,0.00039494,2]
[358217285,1744854639062,-636.948,0.00039494,2]
[358217286,1744854639071,-579.135,0.00039494,2]
[358217287,1744854639080,-4166.009,0.00039494,2]
[358217288,1744854639090,-153.369,0.00039494,2]
[358217289,1744854639100,-1143.233,0.00039494,2]
[358217290,1744854639110,-154.09431904,0.00039873,5]
[358217291,1744854639119,-23900.0,0.00039894,2]
[358217292,1744854639128,-500.0,0.00040167,5]
[358217293,1744854639138,-500.0,0.00040167,5]
[358217294,1744854639149,-254.39693239,0.00040167,5]
[358217295,1744854639159,-4870.75239885,0.00040169,15]
[358217296,1744854639168,-4851.08363484,0.00040232,15]
[358217297,1744854639178,-180.66,0.00040496,2]
[358217298,1744854639194,-500.0,0.00040622,2]
[358217299,1744854639205,-6177.27,0.00040703,2]
[358217300,1744854639216,-1161.73,0.00040726,2]
[358217301,1744854639226,-150.32,0.00040748,2]
[358217302,1744854639235,-153.7,0.000408,31]
[358217303,1744854639245,-153.7,0.000408,31]
[358217304,1744854639254,-153.7,0.000408,31]
[358217305,1744854639264,-153.7,0.000408,31]
[358217306,1744854639273,-153.7,0.000408,31]
[358217307,1744854639283,-153.7,0.000408,31]
[358217308,1744854639293,-153.7,0.000408,31]
[358217309,1744854639302,-153.7,0.000408,31]
[358217310,1744854639312,-153.7,0.000408,31]
[358217311,1744854639322,-153.7,0.000408,31]
[358217312,1744854639331,-153.7,0.000408,31]
[358217313,1744854639345,-153.7,0.000408,31]
[358217314,1744854639355,-153.7,0.000408,31]
[358217315,1744854639365,-153.7,0.000408,31]
[358217316,1744854639375,-153.7,0.000408,31]
[358217317,1744854639384,-153.7,0.000408,31]
[358217318,1744854639394,-893.4374,0.00040888,7]
[358217319,1744854639403,-268.03124,0.00040888,30]
[358217320,1744854639412,-850.0,0.00041,2]
[358217321,1744854639422,-268.03124,0.00041088,30]
[358217322,1744854639431,-268.03124,0.00041288,30]
[358217323,1744854639440,-268.03124,0.00041488,30]
[358217324,1744854639450,-264.78601675,0.0004155,90]
[358217325,1744854639459,-268.03124,0.00041688,30]
[358217326,1744854639469,-268.03124,0.00041888,30]
[358217327,1744854639479,-268.03124,0.00042088,30]
[358217328,1744854639488,-150.32,0.00042124,2]
[358217329,1744854639498,-500.0,0.00042158,10]
[358217330,1744854639507,-268.03124,0.00042288,30]
[358217331,1744854639518,-1536.0,0.00042296,5]
[358217332,1744854639527,-2000.0,0.00042425,120]
[358217333,1744854639537,-268.03124,0.00042488,30]
[358217334,1744854639547,-168.7,0.00042624,2]
[358217335,1744854639557,-156.96,0.00042637,30]
[358217336,1744854639568,-6177.27,0.00042642,2]
[358217337,1744854639579,-268.03124,0.00042688,30]
[358217338,1744854639588,-268.03124,0.00042888,30]
[358217339,1744854639598,-1161.73,0.0004299,2]
[358217340,1744854639609,-900.0,0.00043,2]
[358217341,1744854639619,-4870.75239885,0.00043043,15]
[358217342,1744854639628,-914.09,0.00043072,2]
[358217343,1744854639637,-268.03124,0.00043088,30]
[358217344,1744854639647,-4851.08363484,0.00043093,15]
[358217345,1744854639657,-150.0,0.000431,10]
[358217346,1744854639667,-14000.0,0.0004321,2]
[358217347,1744854639677,-609.91767056,0.00043273,10]
[358217348,1744854639687,-500.0,0.00043273,10]
[358217349,1744854639697,-501.28676363,0.00043273,10]
[358217350,1744854639708,-268.03124,0.00043288,30]
[358217351,1744854639718,-151.0,0.00043288,14]
[358217352,1744854639727,-156.439196,0.00043288,14]
[358217353,1744854639737,-268.03124,0.00043488,30]
[358217354,1744854639747,-400.0,0.000435,120]
[358217355,1744854639757,-150.32,0.000435,2]
[358217356,1744854639767,-1000.0,0.00043533,2]
[358217357,1744854639776,-350.80862421,0.00043648,10]
[358217358,1744854639786,-268.03124,0.00043688,30]
[358217359,1744854639795,-660.47,0.00043713,2]
[358217360,1744854639804,-24199.5726953,0.00043935,3]
[358217361,1744854639813,-315.9481,0.00043945,2]
[358217362,1744854639823,-151.0,0.00044041,14]
[358217363,1744854639832,-151.0,0.00044041,14]
[358217364,1744854639842,-151.0,0.00044041,14]
[358217365,1744854639852,-179.52905327,0.00044041,14]
[358217366,1744854639862,-151.0,0.00044041,14]
[358217367,1744854639872,-178.761681,0.00044041,14]
[358217368,1744854639882,-158.437729,0.00044041,14]
[358217369,1744854639891,-151.331633,0.00044041,14]
[358217370,1744854639900,-153.876608,0.00044041,14]
[358217371,1744854639910,-160.704834,0.00044041,14]
[358217372,1744854639920,-151.0,0.00044041,14]
[358217373,1744854639930,-151.0,0.00044041,14]
[358217374,1744854639939,-151.0,0.00044041,14]
[358217375,1744854639949,-158.463506,0.00044041,14]
[358217376,1744854639959,-151.0,0.00044041,14]
[358217377,1744854639968,-151.0,0.00044041,14]
[358217378,1744854639978,-153.231391,0.00044041,14]
[358217379,1744854639987,-151.0,0.00044041,14]
[358217380,1744854639997,-151.0,0.00044041,14]
[358217381,1744854640006,-151.709647,0.00044041,14]
[358217382,1744854640016,-404.752784,0.00044041,14]
[358217383,1744854640026,-404.752784,0.00044041,14]
[358217384,1744854640035,-151.0,0.00044041,14]
[358217385,1744854640045,-155.309382,0.00044041,14]
[358217386,1744854640054,-192.616011,0.00044041,14]
[358217387,1744854640067,-151.0,0.00044041,14]
[358217388,1744854640077,-151.0,0.00044041,14]
[358217389,1744854640087,-151.0,0.00044041,14]
[358217390,1744854640097,-151.0,0.00044041,14]
[358217391,1744854640108,-159.203492,0.00044041,14]
[358217392,1744854640118,-151.0,0.00044041,14]
[358217393,1744854640128,-151.0,0.00044041,14]
[358217394,1744854640139,-151.0,0.00044041,14]
[358217395,1744854640149,-151.0,0.00044041,14]
[358217396,1744854640159,-153.186054,0.00044041,14]
[358217397,1744854640168,-151.0,0.00044041,14]
[358217398,1744854640178,-152.13566,0.00044041,14]
[358217399,1744854640187,-300.852395,0.00044041,14]
[358217400,1744854640197,-151.397034,0.00044041,14]
[358217401,1744854640207,-151.0,0.00044041,14]
[358217402,1744854640216,-153.537232,0.00044041,14]
[358217403,1744854640226,-151.0,0.00044041,14]
[358217404,1744854640235,-151.0,0.00044041,14]
[358217405,1744854640339,-658.721737,0.00044041,14]
[358217406,1744854640349,-658.721737,0.00044041,14]
[358217407,1744854640359,-658.721737,0.00044041,14]
[358217408,1744854640369,-658.721737,0.00044041,14]
[358217409,1744854640379,-151.0,0.00044041,14]
[358217410,1744854640388,-150.0,0.00044041,2]
[358217411,1744854640397,-158.72292468,0.00044041,3]
[358217412,1744854640406,-874.04845902,0.00044041,2]
[358217413,1744854640418,-5000.00279499,0.00044041,120]
[358217414,1744854640427,-4850.73132989,0.00044041,2]
[358217415,1744854640437,-3358.95760689,0.00044041,120]
[358217416,1744854640447,-5036.45185756,0.00044041,2]
[358217417,1744854640782,-150.0,0.00027,120]
[358217418,1744854640792,-7112.06388536,0.00044041,2]
[358217419,1744854640801,-19239.72198659,0.00044041,7]
[358217420,1744854640812,-15375.88942763,0.00044041,7]
[358217421,1744854640822,-917.80490126,0.00044041,3]
[358217422,1744854640830,-2048.93150152,0.00044041,3]
[358217423,1744854640840,-1106.10667461,0.00044041,2]
[358217424,1744854640850,-151.0,0.00044041,120]
[358217425,1744854640860,-194.59520202,0.00044041,60]
[358217426,1744854640869,-375.0,0.00044041,90]
[358217427,1744854640879,-2000.0,0.00044041,120]
[358217428,1744854640888,-397.0,0.00044041,30]
[358217429,1744854640898,-206.7,0.00044041,30]
[358217430,1744854640907,-195.0,0.00044041,30]
[358217431,1744854640917,-258.73561997,0.00044041,30]
[358217432,1744854640927,-164.30578201,0.00044041,60]
[358217433,1744854640936,-368.0,0.00044041,31]
[358217434,1744854640946,-368.0,0.00044041,31]
[358217435,1744854640955,-369.0,0.00044041,31]
[358217436,1744854640964,-368.0,0.00044041,31]
[358217437,1744854640973,-150.0,0.00044041,2]
[358217438,1744854640983,-150.84963038,0.00044041,120]
[358217439,1744854640993,-374.35137649,0.00044041,2]
[358217440,1744854641002,-386.88122421,0.00044041,120]
[358217441,1744854641011,-501.17421126,0.00044073,10]
[358217442,1744854641021,-500.0,0.00044073,10]
[358217443,1744854641030,-500.78226518,0.00044073,10]
[358217444,1744854641039,-500.0,0.00044073,10]
[358217445,1744854641049,-500.70252722,0.00044073,10]
[358217446,1744854641059,-501.93607589,0.00044073,10]
[358217447,1744854641069,-502.16109153,0.00044073,10]
[358217448,1744854641080,-168.67923687,0.00044073,10]
[358217449,1744854641089,-500.0,0.00044073,10]
[358217450,1744854641099,-302.187072,0.00044073,10]
[358217451,1744854641108,-268.03124,0.00044088,30]
[358217452,1744854641118,-268.03124,0.00044288,30]
[358217453,1744854641127,-150.0,0.00044333,30]
[358217454,1744854641136,-268.03124,0.00044488,30]
[358217455,1744854641147,-6177.27,0.0004458,2]
[358217456,1744854641156,-268.03124,0.00044688,30]
[358217457,1744854641167,-150.32,0.00044876,2]
[358217458,1744854641176,-268.03124,0.00044888,30]
[358217459,1744854641185,-950.0,0.00045,2]
[358217460,1744854641195,-194.654408,0.00045,14]
[358217461,1744854641205,-159.526285,0.00045,14]